[Event "HUN-chT Youth 2019"]
[Site "Budapest"]
[Date "2019.10.28"]
[Round "6.13"]
[White "Megyeri, Martin"]
[Black "Palczert, Matyas"]
[Result "*"]
[ECO "A05"]
[WhiteElo "1611"]
[BlackElo "2009"]
[Annotator "NA RC"]
[PlyCount "20"]
[EventDate "2019.10.26"]
[EventType "team-tourn"]
[EventCountry "HUN"]
[SourceTitle "playchess.com"]
[Source "ChessBase"]
[SourceQuality "1"]
[TimeControl "5400+30"]

1. Nf3 {[%emt 0:00:00]} Nf6 {[%emt 0:00:00]} 2. b3 {[%emt 0:00:00]} e6 {[%emt 0:00:08]} 3. Bb2 {[%emt 0:00:00]} d5 {[%emt 0:00:16]} 4. e3 {[%emt 0:00:06]} Be7 {[%emt 0:00:36]} 5. Be2 {[%emt 0:00:11]} O-O {[%emt 0:00:29]} 6. O-O {[%emt 0:00:12]} c5 {[%emt 0:01:00]} 7. d4 {[%emt 0:00:29]} Nc6 {[%emt 0:01:55]} 8. Nbd2 {[%emt 0:01:18]} b6 {[%emt 0:08:22]} 9. c4 {[%emt 0:01:33]} Bb7 {[%emt 0:01:44]} 10. Rc1 {[%emt 0:01:00]} Rc8 {[%emt 0:01:45]} *

[Event "HUN-chT Youth 2019"]
[Site "Budapest"]
[Date "2019.10.28"]
[Round "6.14"]
[White "Hajdu, Marton Abris"]
[Black "Lehocz, Jozsef Jr."]
[Result "*"]
[ECO "B01"]
[WhiteElo "1818"]
[BlackElo "1447"]
[Annotator "NA RC"]
[PlyCount "24"]
[EventDate "2019.10.26"]
[EventType "team-tourn"]
[EventCountry "HUN"]
[SourceTitle "playchess.com"]
[Source "ChessBase"]
[SourceQuality "1"]
[TimeControl "5400+30"]

1. e4 {[%emt 0:00:00]} d5 {[%emt 0:00:00]} 2. exd5 {[%emt 0:00:00]} Qxd5 {[%emt 0:00:00]} 3. Nc3 {[%emt 0:00:01]} Qd6 {[%emt 0:00:00]} 4. g3 {[%emt 0:01:37]} c6 {[%emt 0:00:00]} 5. Bg2 {[%emt 0:00:23]} Nf6 {[%emt 0:00:17]} 6. Nge2 {[%emt 0:00:17]} Bf5 {[%emt 0:00:24]} 7. O-O {[%emt 0:00:38]} e6 {[%emt 0:00:08]} 8. d4 {[%emt 0:02:17]} Be7 {[%emt 0:00:14]} 9. Bf4 {[%emt 0:01:13]} Qd8 {[%emt 0:01:09]} 10. Qd2 {[%emt 0:02:04]} O-O {[%emt 0:00:47]} 11. h3 {[%emt 0:04:28]} Nbd7 {[%emt 0:01:24]} 12. Kh2 {[%emt 0:02:21]} h5 {[%emt 0:03:40]} *

[Event "HUN-chT Youth 2019"]
[Site "Budapest"]
[Date "2019.10.28"]
[Round "6.15"]
[White "Kellermann, Botond"]
[Black "Nagy, Botond"]
[Result "*"]
[ECO "D70"]
[WhiteElo "1274"]
[BlackElo "1281"]
[Annotator "NA RC"]
[PlyCount "28"]
[EventDate "2019.10.26"]
[EventType "team-tourn"]
[EventCountry "HUN"]
[SourceTitle "playchess.com"]
[Source "ChessBase"]
[SourceQuality "1"]
[TimeControl "5400+30"]

1. d4 {[%emt 0:00:00]} d5 {[%emt 0:00:00]} 2. c4 {[%emt 0:00:00]} c6 {[%emt 0:00:22]} 3. Nf3 {[%emt 0:00:00]} Nf6 {[%emt 0:00:44]} 4. Nbd2 {[%emt 0:01:07]} Bf5 {[%emt 0:00:40]} 5. e3 {[%emt 0:01:42]} e6 {[%emt 0:01:00]} 6. Be2 {[%emt 0:01:00]} Be7 {[%emt 0:01:01]} 7. O-O {[%emt 0:00:21]} Nbd7 {[%emt 0:00:52]} 8. Qb3 {[%emt 0:01:36]} Qc7 {[%emt 0:01:56]} 9. Bd3 {[%emt 0:01:06]} Bg6 {[%emt 0:01:16]} 10. Re1 {[%emt 0:01:03]} Qb6 {[%emt 0:01:10]} 11. Qxb6 {[%emt 0:01:32]} Nxb6 {[%emt 0:01:08]} 12. Bxg6 {[%emt 0:00:13]} hxg6 {[%emt 0:00:29]} 13. c5 {[%emt 0:00:29]} Nbd7 {[%emt 0:00:37]} 14. b4 {[%emt 0:01:01]} a5 {[%emt 0:01:47]} *

[Event "HUN-chT Youth 2019"]
[Site "Budapest"]
[Date "2019.10.29"]
[Round "6.20"]
[White "Gyurika, Tamas"]
[Black "Czumbel, Peter"]
[Result "1-0"]
[ECO "B23"]
[WhiteElo "1920"]
[BlackElo "2021"]
[Annotator "NA RC"]
[PlyCount "35"]
[EventDate "2019.10.26"]
[EventType "team-tourn"]
[EventCountry "HUN"]
[SourceTitle "playchess.com"]
[Source "ChessBase"]
[SourceQuality "1"]
[TimeControl "5400+30"]

1. e4 {[%emt 0:00:00]} c5 {[%emt 0:00:00]} 2. Nc3 {[%emt 0:00:00]} Nc6 {[%emt 0:00:00]} 3. f4 {[%emt 0:00:00]} g6 {[%emt 0:00:26]} 4. Nf3 {[%emt 0:00:00]} Bg7 {[%emt 0:00:08]} 5. Bc4 {[%emt 0:00:03]} e6 {[%emt 0:00:12]} 6. O-O {[%emt 0:00:20]} Nge7 {[%emt 0:00:06]} 7. Qe1 {[%emt 0:00:11]} a6 {[%emt 0:00:46]} 8. d3 {[%emt 0:00:11]} b5 {[%emt 0:01:11]} 9. Bb3 {[%emt 0:00:07]} O-O {[%emt 0:00:47]} 10. f5 {[%emt 0:00:17]} exf5 {[%emt 0:03:16]} 11. Qh4 {[%emt 0:00:13]} Ne5 {[%emt 0:06:09]} 12. Bg5 {[%emt 0:02:27]} Re8 {[%emt 0:04:14]} 13. Nd5 {[%emt 0:00:39]} N5c6 {[%emt 0:01:41]} 14. Nf6+ {[%emt 0:02:05]} Bxf6 {[%emt 0:01:20]} 15. Bxf6 {[%emt 0:00:09]} h5 {[%emt 0:00:42]} 16. Qg5 {[%emt 0:00:27]} Kh7 {[%emt 0:01:22]} 17. Bxf7 {[%emt 0:00:11]} Rf8 {[%emt 0:00:09]} 18. Bxg6+ {[%emt 0:00:20]} 1-0

[Event "HUN-chT Youth 2019"]
[Site "Budapest"]
[Date "2019.10.29"]
[Round "6.21"]
[White "Fodor, Kornel"]
[Black "Blahota, Marcell"]
[Result "1-0"]
[ECO "B18"]
[WhiteElo "1933"]
[BlackElo "1765"]
[Annotator "NA RC"]
[PlyCount "55"]
[EventDate "2019.10.26"]
[EventType "team-tourn"]
[EventCountry "HUN"]
[SourceTitle "playchess.com"]
[Source "ChessBase"]
[SourceQuality "1"]
[TimeControl "5400+30"]

1. e4 {[%emt 0:03:44]} c6 {[%emt 0:00:06]} 2. d4 {[%emt 0:00:10]} d5 {[%emt 0:00:17]} 3. Nc3 {[%emt 0:00:21]} dxe4 {[%emt 0:00:23]} 4. Nxe4 {[%emt 0:00:03]} Bf5 {[%emt 0:00:25]} 5. Ng3 {[%emt 0:00:03]} Bg6 {[%emt 0:00:14]} 6. Nh3 {[%emt 0:00:16]} e6 {[%emt 0:00:24]} 7. Nf4 {[%emt 0:00:09]} Bd6 {[%emt 0:00:12]} 8. h4 {[%emt 0:06:59]} Bxf4 {[%emt 0:06:31] B18: Classical Caro-Kann: 4...Bf5 sidelines} 9. Bxf4 {[%emt 0:00:12]} h6 {[%emt 0:00:12]} 10. h5 {[%emt 0:05:38]} Bh7 {[%emt 0:00:35]} 11. c3 {[%emt 0:01:51]} Nf6 {[%emt 0:00:56]} 12. Bd3 {[%emt 0:04:30]} Bxd3 {[%emt 0:04:57]} 13. Qxd3 {[%emt 0:00:07] [#]} Qe7 $146 {[%emt 0:07:54]} ({Predecessor:} 13... O-O 14. O-O-O b5 15. f3 Nd5 16. Bd2 Nd7 {1-0 (41) Rozentalis,E (2604)-Postny,E (2654) Austria 2014}) 14. O-O-O {[%emt 0:07:35]} Nbd7 {[%emt 0:07:11]} 15. c4 {[%emt 0:03:24]} O-O-O {[%emt 0:09:59]} 16. f3 {[%emt 0:01:21]} Qb4 {[%emt 0:02:36]} 17. Ne4 {[%emt 0:15:11]} Nxe4 {[%emt 0:27:19]} 18. fxe4 {[%emt 0:00:11]} Qa4 {[%emt 0:06:49]} (18... e5 $11 {keeps the balance.} 19. Bd2 (19. dxe5 Nc5 $11) 19... Qd6) 19. Kb1 {[%emt 0:01:05]} b6 {[%emt 0:02:59]} 20. Qe2 {[%emt 0:14:28]} Rhe8 {[%emt 0:08:23]} 21. Rh3 {[%emt 0:02:14]} Kb7 {[%emt 0:01:04]} 22. Ra3 {[%emt 0:07:34]} Qb4 {[%emt 0:00:44]} 23. c5 $1 {[%emt 0:01:06]} b5 {[%emt 0:01:01]} (23... Nb8 {is a better defense.} 24. Bd6 Qb5) 24. Bd2 {[%emt 0:02:08]} (24. Rdd3 $18 Nxc5 25. dxc5) 24... Qxd4 $2 {[%emt 0:02:53]} (24... Qc4 $16 {is more resistant.} 25. Qxc4 bxc4) 25. Ba5 $1 {[%emt 0:01:21]} Qf6 {[%emt 0:02:16]} 26. Bxd8 $18 {[%emt 0:00:08]} Rxd8 {[%emt 0:00:06]} 27. Rad3 {[%emt 0:00:46]} Kc7 {[%emt 0:00:21]} 28. Qd2 {[%emt 0:00:14]} 1-0

[Event "HUN-chT Youth 2019"]
[Site "Budapest"]
[Date "2019.10.29"]
[Round "6.22"]
[White "Oros, Mikhailo"]
[Black "Forgacs, Andras"]
[Result "0-1"]
[ECO "A04"]
[WhiteElo "1704"]
[BlackElo "1882"]
[Annotator "NA RC"]
[PlyCount "54"]
[EventDate "2019.10.26"]
[EventType "team-tourn"]
[EventCountry "HUN"]
[SourceTitle "playchess.com"]
[Source "ChessBase"]
[SourceQuality "1"]
[TimeControl "5400+30"]

1. Nf3 {[%emt 0:00:00]} b6 {[%emt 0:01:51]} 2. g3 {[%emt 0:00:00]} Bb7 {[%emt 0:00:06]} 3. d4 {[%emt 0:00:55]} e6 {[%emt 0:00:40]} 4. Bg2 {[%emt 0:00:11]} c5 {[%emt 0:00:50]} 5. O-O {[%emt 0:02:12]} Nf6 {[%emt 0:09:29]} 6. Bg5 {[%emt 0:03:57] A47: 1 d4 Nf6 2 Nf3 b6: Torre, London and Colle Systems} (6. dxc5 Bxc5 7. c4 d5 8. Nh4 Qc8 9. cxd5 Bxd5 10. Bxd5 Nxd5 11. e4 Ne7 12. b4 Bxb4 13. Qd4 Qc5 14. Qxg7 {½-½ (62) Naiditsch,A (2702)-Akobian,V (2633) Caleta 2017}) 6... Na6 {[%emt 0:06:17]} 7. c3 {[%emt 0:02:52]} Be7 {[%emt 0:03:54]} 8. e3 {[%emt 0:02:51]} O-O {[%emt 0:02:10]} 9. Nbd2 {[%emt 0:06:56]} Qc7 $146 {[%emt 0:11:00]} ({Predecessor:} 9... Ne4 10. Nxe4 Bxe4 11. Bxe7 Qxe7 12. Qa4 Nc7 13. dxc5 Bc6 14. Qf4 Nd5 15. Qd6 bxc5 16. Qxe7 Nxe7 {0-1 (60) Lakat,G (2014)-Pali,G (2127) Budapest 2004}) 10. Rc1 {[%emt 0:02:19]} d6 {[%emt 0:01:02]} 11. Re1 {[%emt 0:08:15]} Ne4 {[%emt 0:04:28]} 12. Nxe4 {[%emt 0:00:56]} Bxe4 {[%emt 0:00:02]} 13. Bxe7 {[%emt 0:01:07]} Qxe7 {[%emt 0:00:04]} 14. Qd2 {[%emt 0:00:43]} Qb7 {[%emt 0:02:52]} 15. Nh4 {[%emt 0:01:23]} Bxg2 {[%emt 0:00:59]} 16. Nxg2 {[%emt 0:00:02]} Rfc8 {[%emt 0:13:18]} 17. Red1 {[%emt 0:03:07]} c4 {[%emt 0:00:19]} 18. b3 {[%emt 0:06:30]} cxb3 {[%emt 0:01:05]} 19. axb3 {[%emt 0:00:04]} Nc7 {[%emt 0:00:12]} 20. c4 {[%emt 0:01:29]} a5 {[%emt 0:12:09]} 21. Qa2 {[%emt 0:04:53]} Na6 {[%emt 0:00:13]} 22. Nf4 {[%emt 0:02:52]} Nb4 {[%emt 0:04:05]} 23. Qa3 {[%emt 0:03:48]} Qe4 {[%emt 0:07:24]} 24. Rc3 $11 {[%emt 0:04:34]} b5 {[%emt 0:01:30]} 25. Rdc1 {[%emt 0:02:02]} g5 {[%emt 0:01:17]} 26. Ne2 {[%emt 0:03:22]} Nd3 {[%emt 0:00:55]} 27. R1c2 {[%emt 0:02:19]} b4 {[%emt 0:00:12]} 0-1

[Event "HUN-chT Youth 2019"]
[Site "Budapest"]
[Date "2019.10.29"]
[Round "6.26"]
[White "Csajbok, Levente Tamas"]
[Black "Demjen, Mark"]
[Result "0-1"]
[ECO "C95"]
[WhiteElo "1820"]
[BlackElo "1902"]
[Annotator "NA RC"]
[PlyCount "62"]
[EventDate "2019.10.26"]
[EventType "team-tourn"]
[EventCountry "HUN"]
[SourceTitle "playchess.com"]
[Source "ChessBase"]
[SourceQuality "1"]
[TimeControl "5400+30"]

1. e4 {[%emt 0:00:00]} e5 {[%emt 0:16:40]} 2. Nf3 {[%emt 0:00:00]} Nc6 {[%emt 0:00:05]} 3. Bb5 {[%emt 0:00:00]} a6 {[%emt 0:00:06]} 4. Ba4 {[%emt 0:00:00]} Nf6 {[%emt 0:00:05]} 5. O-O {[%emt 0:00:03]} Be7 {[%emt 0:00:15]} 6. Re1 {[%emt 0:00:12]} b5 {[%emt 0:00:06]} 7. Bb3 {[%emt 0:00:07]} O-O {[%emt 0:00:13]} 8. h3 {[%emt 0:00:36]} d6 {[%emt 0:00:06]} 9. c3 {[%emt 0:00:04]} Nb8 {[%emt 0:00:03]} 10. d4 {[%emt 0:00:20]} Nbd7 {[%emt 0:00:05]} 11. Nbd2 {[%emt 0:06:27]} Bb7 {[%emt 0:01:19]} 12. Bc2 {[%emt 0:00:33]} Re8 {[%emt 0:00:04]} 13. Nf1 {[%emt 0:00:22]} Bf8 {[%emt 0:00:20]} 14. Ng3 {[%emt 0:00:25]} g6 {[%emt 0:00:20]} 15. Bd2 {[%emt 0:07:13]} Bg7 {[%emt 0:00:49]} 16. Qc1 {[%emt 0:00:46] C95: Closed Ruy Lopez: Breyer Variation with 10 d4} exd4 {[%emt 0:02:12]} (16... d5 17. Nxe5 Nxe5 18. dxe5 Nxe4 19. Nxe4 dxe4 20. Bxe4 Bxe4 21. Rxe4 Qd5 22. Qc2 Rxe5 23. Rae1 Rae8 24. Rxe5 Rxe5 25. Rxe5 Bxe5 {½-½ (41) Antipov,M (2582)-Jumabayev,R (2603) Bastia 2017}) 17. cxd4 {[%emt 0:00:15]} c5 {[%emt 0:00:15]} 18. d5 {[%emt 0:00:27]} c4 $146 {[%emt 0:00:09]} ({Predecessor:} 18... Ne5 19. Nxe5 Rxe5 20. Bf4 Re8 21. Qd2 Nd7 22. Bxd6 Bxb2 23. Rab1 Qf6 {½-½ (58) Semjonovs,I (2245)-Veiga,J (2305) Konya 2018}) 19. Bh6 {[%emt 0:01:39]} Bh8 {[%emt 0:01:27]} 20. Qd2 {[%emt 0:04:35]} Rc8 {[%emt 0:04:35]} 21. Rac1 {[%emt 0:01:54]} Nc5 {[%emt 0:11:39]} 22. Nd4 {[%emt 0:04:12]} Nfd7 {[%emt 0:09:58]} 23. b4 {[%emt 0:07:39]} Nd3 {[%emt 0:24:37]} 24. Bxd3 {[%emt 0:00:25]} Bxd4 {[%emt 0:00:09]} 25. Bxc4 {[%emt 0:01:07]} Qh4 {[%emt 0:00:12]} (25... Qf6 $11 {remains equal.} 26. e5 Bxe5) 26. Qxd4 $4 {[%emt 0:04:47]} (26. Be2 $16 {and life is bright.}) 26... Qxh6 {[%emt 0:00:35]} 27. Qa7 {[%emt 0:00:09]} Rc7 {[%emt 0:01:42] Pin} ({Not} 27... Rxc4 28. Rxc4 bxc4 29. Qxb7 $14) 28. Rb1 {[%emt 0:04:01]} bxc4 {[%emt 0:02:30]} 29. b5 {[%emt 0:01:23]} axb5 {[%emt 0:06:33]} 30. Rxb5 {[%emt 0:00:12]} (30. Qa5 $142 Rec8 31. Qxb5) 30... Ra8 {[%emt 0:00:23]} 31. Qd4 {[%emt 0:00:29]} Qg7 $19 {[%emt 0:01:37]} 0-1

[Event "HUN-chT Youth 2019"]
[Site "Budapest"]
[Date "2019.10.29"]
[Round "6.27"]
[White "Kocsis, Peter"]
[Black "Szivak, Andras"]
[Result "1/2-1/2"]
[ECO "A05"]
[WhiteElo "1929"]
[BlackElo "1730"]
[Annotator "NA RC"]
[PlyCount "78"]
[EventDate "2019.10.26"]
[EventType "team-tourn"]
[EventCountry "HUN"]
[SourceTitle "playchess.com"]
[Source "ChessBase"]
[SourceQuality "1"]
[TimeControl "5400+30"]

{[%evp 40,76,-8,-9,0,0,18,10,17,4,20,6,40,32767,32767,41,35,33,41,41,43,41,48,36,40,18,33,0,0,0,0,0,0,0,0,0,0,0,0]} 1. Nf3 {[%emt 0:00:00]} Nf6 {[%emt 0:00:00]} 2. b3 {[%emt 0:00:00]} d5 {[%emt 0:00:37]} 3. Bb2 {[%emt 0:00:00]} e6 {[%emt 0:00:50]} 4. e3 {[%emt 0:00:00]} Be7 {[%emt 0:00:32]} 5. d4 {[%emt 0:00:31]} O-O {[%emt 0:03:27]} 6. Bd3 {[%emt 0:00:12]} Nbd7 {[%emt 0:03:34]} 7. O-O {[%emt 0:00:30] D05: Colle System with ...e6} c5 {[%emt 0:01:21]} 8. Nbd2 {[%emt 0:01:06]} b6 {[%emt 0:00:54]} 9. Rc1 {[%emt 0:02:45]} (9. Qe2 Bb7 10. Rfd1 Rc8 11. c4 Qc7 12. Rac1 Qb8 13. cxd5 Nxd5 14. Bb5 N7f6 15. dxc5 Bxc5 {½-½ (23) Morovic Fernandez,I (2550)-Xu,Y (2444) Moscow 2017}) 9... Bb7 {[%emt 0:01:12]} 10. Ne5 {[%emt 0:02:02]} Qc7 {[%emt 0:01:41]} 11. c4 {[%emt 0:01:32]} Bd6 {[%emt 0:04:25]} 12. f4 $146 {[%emt 0:04:20]} ({Predecessor:} 12. Ndf3 Rfd8 13. cxd5 Bxd5 14. Qe2 h6 15. e4 Bb7 16. b4 Qb8 17. Nxd7 Nxd7 {½-½ (50) Guo,W (1882)-Wang,Y (1585) Zibo 2017}) 12... Ne4 {[%emt 0:12:28]} 13. Nxe4 {[%emt 0:07:10]} dxe4 {[%emt 0:00:14]} 14. Bb1 {[%emt 0:00:35]} Rad8 {[%emt 0:09:13]} 15. Qe2 {[%emt 0:03:28]} f6 {[%emt 0:04:36]} 16. dxc5 {[%emt 0:11:29]} Bxc5 {[%emt 0:03:11]} 17. Ng4 {[%emt 0:01:05]} f5 {[%emt 0:07:15]} 18. Ne5 {[%emt 0:04:29]} Nxe5 {[%emt 0:01:29]} 19. Bxe5 {[%emt 0:00:12]} Bd6 {[%emt 0:00:59]} 20. Bb2 {[%emt 0:04:34]} Bb4 {[%emt 0:04:01]} 21. Rcd1 {[%emt 0:00:56]} Rxd1 {[%emt 0:01:45]} 22. Rxd1 {[%emt 0:00:11]} Rd8 {[%emt 0:01:30]} 23. a3 {[%emt 0:04:42]} Be7 {[%emt 0:01:16]} 24. Rd2 {[%emt 0:02:24]} Rxd2 {[%emt 0:02:28]} 25. Qxd2 {[%emt 0:00:02]} Qd6 {[%emt 0:00:41]} 26. Qxd6 {[%emt 0:03:04]} Bxd6 {[%emt 0:00:09]} 27. b4 {[%emt 0:01:32]} Kf7 {[%emt 0:01:41]} 28. Kf2 {[%emt 0:00:13]} g6 {[%emt 0:01:29]} 29. g3 {[%emt 0:03:18]} Be7 {[%emt 0:02:59]} 30. Bd4 {[%emt 0:09:49]} Bf6 {[%emt 0:01:38]} 31. Ba2 {[%emt 0:02:14]} Ke7 {[%emt 0:02:04]} 32. h4 {[%emt 0:01:58]} Bc6 {[%emt 0:02:21]} 33. Bb3 {[%emt 0:00:49]} Bxd4 {[%emt 0:04:25]} 34. exd4 {[%emt 0:00:02]} b5 {[%emt 0:01:37]} 35. c5 {[%emt 0:04:37]} Bd5 {[%emt 0:00:42]} 36. Bxd5 {[%emt 0:00:07]} exd5 {[%emt 0:00:16]} 37. Kg2 {[%emt 0:00:32]} h5 {[%emt 0:00:30]} 38. Kf2 {[%emt 0:00:02]} Kd7 $11 {[%emt 0:00:13]} 39. Ke1 {[%emt 0:00:10]} Kc6 1/2-1/2

[Event "HUN-chT Youth 2019"]
[Site "Budapest"]
[Date "2019.10.29"]
[Round "6.28"]
[White "Novak, Levente Peter"]
[Black "Sulyok, Eszter"]
[Result "0-1"]
[ECO "B43"]
[WhiteElo "1639"]
[BlackElo "1893"]
[Annotator "NA RC"]
[PlyCount "96"]
[EventDate "2019.10.26"]
[EventType "team-tourn"]
[EventCountry "HUN"]
[SourceTitle "playchess.com"]
[Source "ChessBase"]
[SourceQuality "1"]
[TimeControl "5400+30"]

{[%evp 35,86,23,13,1,27,32767,32767,-20,-18,32767,61,0,-18,-35,-46,-53,-32,-29,-37,-89,-36,-42,-27,-28,-46,-53,-41,-62,-40,-40,-40,-97,-74,-82,-87,-78,-79,-76,-72,-155,-154,-148,-175,-158,-122,-129,-49,-51,-33,-50,-47,-40,-56]} 1. e4 {[%emt 0:00:32]} c5 {[%emt 0:00:00]} 2. Nf3 {[%emt 0:00:11]} e6 {[%emt 0:00:00]} 3. d4 {[%emt 0:00:24]} cxd4 {[%emt 0:00:00]} 4. Nxd4 {[%emt 0:00:04]} a6 {[%emt 0:00:00]} 5. Nc3 {[%emt 0:00:33]} Qc7 {[%emt 0:00:02]} 6. Be2 {[%emt 0:00:39]} Nf6 {[%emt 0:00:46]} 7. O-O {[%emt 0:01:12]} Bb4 {[%emt 0:00:57]} 8. Qd3 {[%emt 0:03:32]} Nc6 {[%emt 0:01:22]} 9. Bg5 {[%emt 0:04:56]} Be7 {[%emt 0:07:44] B43: Sicilian: Kan Variation: 5 Nc3} 10. Be3 {[%emt 0:08:41]} (10. Nxc6 bxc6 11. f4 d5 12. e5 Ng8 13. Qg3 g6 14. Bxe7 Nxe7 15. Na4 a5 {½-½ (15) Praggnanandhaa,R (2487)-Landa,K (2623) Vlissingen 2017}) 10... O-O {[%emt 0:01:01]} 11. Kh1 $146 {[%emt 0:03:15]} ({Predecessor:} 11. f4 Nb4 12. Qd2 Nc6 13. e5 Ne8 14. Rad1 d6 15. Rf3 dxe5 16. Nxc6 Qxc6 17. fxe5 {1-0 (24) Idczak,R (1856)-Zysko,T (1704) Wroclaw 2007}) 11... Ne5 {[%emt 0:03:13]} 12. Qd2 {[%emt 0:02:22]} Bb4 {[%emt 0:10:03]} 13. f3 {[%emt 0:04:31]} b5 {[%emt 0:02:58]} 14. Bg5 {[%emt 0:05:39]} Be7 {[%emt 0:08:15]} 15. f4 {[%emt 0:10:13]} Ng6 {[%emt 0:09:50]} 16. e5 {[%emt 0:09:52]} Ne8 {[%emt 0:00:13]} 17. Bxe7 {[%emt 0:02:24]} Nxe7 18. Bf3 {[%emt 0:05:33]} Rb8 {[%emt 0:03:13]} 19. Ne4 {[%emt 0:04:03]} d5 {[%emt 0:02:25]} 20. exd6 {[%emt 0:02:58]} Nxd6 {[%emt 0:00:06]} 21. Nxd6 {[%emt 0:01:15]} Qxd6 {[%emt 0:00:13]} 22. Rad1 {[%emt 0:01:53]} Rd8 {[%emt 0:03:29]} ({Black should try} 22... Qb6 $11) 23. Qe3 {[%emt 0:02:10]} ({Better is} 23. Qa5 $1 $14 Rf8 24. Nxe6 Qxe6 25. Qc7) 23... Qc7 {[%emt 0:00:51]} 24. Be4 {[%emt 0:04:06]} ({White should play} 24. f5 $14) 24... Bb7 {[%emt 0:01:25]} 25. c3 {[%emt 0:01:18]} Bxe4 {[%emt 0:02:21]} 26. Qxe4 {[%emt 0:00:02]} Rd6 {[%emt 0:04:02]} 27. Rd3 {[%emt 0:01:31]} (27. Rde1 $11) 27... Rbd8 {[%emt 0:01:25]} 28. Rfd1 {[%emt 0:00:55]} b4 {[%emt 0:04:59]} 29. Ne2 {[%emt 0:03:22]} Rxd3 {[%emt 0:03:14]} 30. Rxd3 {[%emt 0:01:34]} bxc3 {[%emt 0:01:33]} 31. Rxd8+ {[%emt 0:00:24]} Qxd8 {[%emt 0:00:04]} 32. Nxc3 {[%emt 0:00:24]} h6 {[%emt 0:01:28]} 33. h3 {[%emt 0:01:11]} ({White should play} 33. g3 $15) 33... Qd2 {[%emt 0:01:36]} 34. Qa8+ {[%emt 0:01:37]} Kh7 {[%emt 0:00:04]} 35. Qxa6 {[%emt 0:00:26]} Qc1+ {[%emt 0:00:07]} 36. Kh2 {[%emt 0:00:17]} Qxf4+ {[%emt 0:00:03]} 37. Kh1 {[%emt 0:00:38]} ({White should try} 37. Kg1) 37... Qc1+ {[%emt 0:00:05]} 38. Kh2 {[%emt 0:00:04]} Qxb2 {[%emt 0:00:23]} 39. Qd3+ {[%emt 0:00:19]} Ng6 {[%emt 0:00:22]} 40. a4 {[%emt 0:00:40]} f5 {[%emt 0:00:56]} (40... Qb4 $17 41. Qg3 f5) 41. a5 $1 {[%emt 0:00:55] [#]} Nf4 $1 {[%emt 0:00:23]} 42. Qf3 {[%emt 0:01:01] [#]} Nxg2 $1 {[%emt 0:01:38]} 43. Qxg2 $15 {[%emt 0:00:36]} Qxc3 {[%emt 0:00:04]} 44. a6 {[%emt 0:01:11]} Qe5+ {[%emt 0:00:03]} 45. Qg3 {[%emt 0:02:02]} Qe2+ {[%emt 0:00:05]} 46. Kh1 {[%emt 0:00:17]} Qxa6 {[%emt 0:00:07]} 47. Qe5 {[%emt 0:00:18]} Qc6+ {[%emt 0:00:31]} 48. Kh2 {[%emt 0:00:17]} Qe4 0-1

[Event "HUN-chT Youth 2019"]
[Site "Budapest"]
[Date "2019.10.29"]
[Round "6.29"]
[White "Szabo, Miklos"]
[Black "Makay, Mark Janos"]
[Result "1-0"]
[ECO "B31"]
[WhiteElo "1796"]
[BlackElo "1442"]
[Annotator "NA RC"]
[PlyCount "51"]
[EventDate "2019.10.26"]
[EventType "team-tourn"]
[EventCountry "HUN"]
[SourceTitle "playchess.com"]
[Source "ChessBase"]
[SourceQuality "1"]
[TimeControl "5400+30"]

1. e4 {[%emt 0:00:00]} c5 {[%emt 0:00:19]} 2. Nf3 {[%emt 0:00:00]} Nc6 {[%emt 0:00:33]} 3. Bb5 {[%emt 0:00:11]} g6 {[%emt 0:00:47]} 4. e5 {[%emt 0:01:58]} Bg7 {[%emt 0:01:36]} 5. Bxc6 {[%emt 0:00:06]} dxc6 {[%emt 0:00:33]} 6. h3 {[%emt 0:04:10]} e6 {[%emt 0:03:20]} 7. d3 {[%emt 0:00:45]} Ne7 {[%emt 0:04:46]} 8. Bg5 {[%emt 0:05:47]} Qc7 {[%emt 0:04:34]} 9. Bxe7 {[%emt 0:00:19]} Qxe7 {[%emt 0:00:15]} 10. O-O {[%emt 0:00:23]} O-O {[%emt 0:01:37]} 11. Nbd2 {[%emt 0:01:27]} b6 {[%emt 0:02:57]} 12. Qc1 {[%emt 0:09:29]} Rd8 {[%emt 0:03:32]} 13. Ne4 {[%emt 0:04:46]} f5 14. Nd6 {[%emt 0:07:20]} Ba6 {[%emt 0:17:03]} 15. Nc4 {[%emt 0:03:27]} h6 {[%emt 0:08:42]} 16. Nd6 {[%emt 0:04:52]} Kh7 {[%emt 0:03:14]} 17. Re1 {[%emt 0:01:21]} g5 {[%emt 0:06:14]} 18. Qe3 {[%emt 0:01:33]} Kg6 {[%emt 0:05:50]} 19. d4 {[%emt 0:03:36]} cxd4 {[%emt 0:06:39]} 20. Nxd4 {[%emt 0:00:42]} Qd7 {[%emt 0:03:42]} 21. g4 {[%emt 0:02:39]} Bxe5 {[%emt 0:07:31]} 22. Qxe5 {[%emt 0:04:52]} Qxd6 {[%emt 0:00:25]} 23. gxf5+ {[%emt 0:03:48]} Kh7 {[%emt 0:00:25]} 24. Qxe6 {[%emt 0:04:51]} Qxd4 {[%emt 0:06:57]} 25. Qg6+ {[%emt 0:00:07]} Kh8 {[%emt 0:00:09]} 26. Re7 1-0